Cogmind - Beta 15 @@@ ROGUE MODE // 2025.10.11 @ 20:12:43 Player: NQH Result: Destroyed by G-47 Trooper with Particle Gun Performance ------------- Evolutions (1) 500 Regions Visited (3) 600 Robots Destroyed (10) 50 Value Destroyed (350) 350 Prototype IDs (0) 0 Alien Tech Used (0) 0 Bonus (0) 0 TOTAL SCORE: 1500 Bonus ------- None Cogmind --------- Core Integrity 0/400 Matter 143/300 Energy 100/100 System Corruption 3% Temperature Warm (142) Movement Treading (160) Location -9/Materials Parts ------- > --- POWER (1) -------- (None) > --- PROPULSION (2) --- Light Treads Light Treads > --- UTILITY (4) ------ (None) > --- WEAPON (2) ------- Autogun > --- INVENTORY (5) ---- (None) Peak State ------------ > --- POWER ------------ (None) > --- PROPULSION ------- (None) > --- UTILITY ---------- Small Storage Unit Huge Storage Unit > --- WEAPON ----------- Plasma Flamer > --- INVENTORY -------- Heavy Explosive Trap Heavy Explosive Trap Heavy Explosive Trap Heavy Explosive Trap [Rating: 7] Favorites ----------- Power Ion Engine Engine Ion Engine Propulsion Wheel Treads Light Treads Wheel Wheel Flight Unit VTOL Module Utility Huge Storage Unit Storage Huge Storage Unit Weapon Plasma Flamer Energy Gun EM Pulse Gun Ballistic Gun Autogun Special Weapon Plasma Flamer Build | -11 -10 -10 -9 ------- Run | Yrd Mat Min Mat Slots Evolved 2 | . . . 2 Power . | . . . . Propulsion . | . . . . Utility 2 | . . . 2 Weapon . | . . . . Parts Attached 18 | 7 . 1 10 Power 1 | 1 . . . Engine 1 | 1 . . . Core . | . . . . Reactor . | . . . . Propulsion 6 | 2 . . 4 Treads 2 | . . . 2 Leg . | . . . . Wheel 2 | 2 . . . Hover . | . . . . Flight 2 | . . . 2 Utility 3 | 1 . . 2 Device . | . . . . Storage 3 | 1 . . 2 Processor . | . . . . Hackware . | . . . . Protection . | . . . . Artifact . | . . . . Weapon 8 | 3 . 1 4 Energy Gun 2 | 2 . . . Energy Cannon . | . . . . Ballistic Gun 5 | 1 . . 4 Ballistic Cannon . | . . . . Launcher . | . . . . Special Weapon 1 | . . 1 . Impact Weapon . | . . . . Slashing Weapon . | . . . . Piercing Weapon . | . . . . Special Melee Weapon . | . . . . Unidentified Prototypes . | . . . . Parts Lost 5 | . . . 5 Power . | . . . . Propulsion 2 | . . . 2 Utility . | . . . . Weapon 3 | . . . 3 Highest Loss Streak 4 | . . . 4 To Critical Strikes . | . . . . Average Backups . | . . . . Power . | . . . . Propulsion . | . . . . Utility . | . . . . Weapon . | . . . . Tool/Special . | . . . . Unused Backups . | . . . . Power . | . . . . Propulsion . | . . . . Utility . | . . . . Weapon . | . . . . Tool/Special . | . . . . Average Slot Usage (%) 25 | . 53 8 28 Flight 1 | . . . 1 Storage 12 | . 10 . 15 Ballistic Gun 1 | . 10 . 1 Special Weapon 9 | . . 8 9 Peak Build Rating 7 | 6 5 5 7 Average Rating 5 | 4 3 3 6 On Entrance 2 | . 5 . 5 Naked Turns 78 | . 12 57 9 Heaviest Build 88 | 14 12 3 88 Greatest Support 40 | 26 26 3 40 Greatest Overweight (x) 29 | . . . 29 Average Overweight (x) 2 | . . . 5 Largest Inventory Capacity 25 | 8 8 5 25 Average Capacity 16 | 7 6 5 20 Most Carried 5 | 2 . 5 5 Average Carried 2 | . . 1 3 Final Capacity 8 | 8 5 5 5 Final Carried 4 | . . 4 . Class Distribution -------------------- 100% | Mutant Dominant Class ---------------- Mutant | -10/Materials Mutant | -10/Mines Mutant | -9/Materials Resources | -11 -10 -10 -9 ----------- Run | Yrd Mat Min Mat Matter Collected 322 | 181 . 88 53 Remotely . | . . . . Salvage Created 342 | . . 16 326 Parts 25 | . . . 25 Haulers Intercepted . | . . . . Recyclers Shooed . | . . . . Parts Field Recycled . | . . . . Retrieved Matter . | . . . . Parts Self-Destructed . | . . . . Prevented . | . . . . Kills | -11 -10 -10 -9 ------- Run | Yrd Mat Min Mat Combat Hostiles Destroyed 10 | . . 1 9 Guns 7 | . . . 7 AOE 2 | . . . 2 Classes Destroyed 3 | . . 1 2 Swarmer 2 | . . . 2 Grunt 6 | . . 1 5 Sentry 2 | . . . 2 Best Kill Streak 7 | . . 1 7 Combat Bots Only 7 | . . 1 7 Max Kills in Single Turn 2 | . . 1 2 Gunslinging . | . . . . Exploded 2 | . . . 2 Melee . | . . . . Uniques/NPCs Destroyed . | . . . . Combat | -11 -10 -10 -9 -------- Run | Yrd Mat Min Mat Hostile Shots Fired 95 | . 12 7 76 Missed 28 | . 3 2 23 Hits 67 | . 9 5 53 Projectile 67 | . 9 5 53 Damage Taken 1076 | . 75 150 851 Core 627 | . 69 150 408 Absorbed by Shields . | . . . . Core Remaining (%) 56 | 100 . 12 . Volleys Fired 34 | . . 5 29 Largest 2 | . . 1 2 Hottest 100 | . . 100 46 Shots Fired 47 | . . 5 42 Gun 42 | . . . 42 Cannon . | . . . . Launcher . | . . . . Special 5 | . . 5 . Kinetic 42 | . . . 42 Thermal 5 | . . 5 . Explosive . | . . . . Electromagnetic . | . . . . Robot Hit Streak 16 | . . 5 16 Robot Miss Streak 1 | . . . 1 Penetration Max . | . . . . Secondary Targets 3 | . . . 3 Max Gunslinging Chain 1 | . . . 1 Shots Hit Robots 39 | . . 5 34 Core Hits 16 | . 1 1 14 Critical Kills . | . . . . Critical Parts Destroyed . | . . . . Critical Strikes 2 | . . 2 . Burn 2 | . . 2 . Melee Attacks . | . . . . Impact . | . . . . Slashing . | . . . . Piercing . | . . . . Sneak Attacks . | . . . . Combat Hostiles . | . . . . Follow-up Attacks . | . . . . Damage Inflicted 914 | . 16 65 833 Guns 430 | . . . 430 Cannons . | . . . . Explosions 403 | . . . 403 Melee . | . . . . Ramming 16 | . 16 . . Kinetic 430 | . . . 430 Thermal 65 | . . 65 . Explosive 403 | . . . 403 Electromagnetic . | . . . . Impact . | . . . . Slashing . | . . . . Piercing . | . . . . Highest Corruption 3 | . . . 3 Average Corruption 3 | . . . 3 Corruption Purged . | . . . . Corruption Blocked . | . . . . Effects 4 | . . . 4 Message Errors 1 | . . . 1 Matter Fused 1 | . . . 1 Heat Flow Errors 1 | . . . 1 Parts Rejected 1 | . . . 1 Overload Shots . | . . . . Overflow Damage 40 | . . . 40 Projectiles . | . . . . Explosions 40 | . . . 40 Melee . | . . . . Knockbacks . | . . . . Impact . | . . . . Kinetic . | . . . . Secondary . | . . . . Self-Inflicted Damage 214 | . 8 80 126 Shots 3 | . . 1 2 Rammed 3 | . 2 . 1 Targets Rammed 3 | . 2 . 1 Kicked . | . . . . Crushed . | . . . . Highest Temperature 216 | . . 209 216 Average Temperature 92 | . . 113 65 Received Heat Transfer 318 | . . 39 279 Siege Activations . | . . . . Martial Activations . | . . . . Shielding Activations . | . . . . Robots Disrupted . | . . . . Combat Hostiles . | . . . . Robots Corrupted . | . . . . Combat Hostiles . | . . . . Parts Fried . | . . . . Impact Corruptions . | . . . . Robots Melted 1 | . . 1 . Combat Hostiles 1 | . . 1 . Parts Melted 2 | . . 2 . Heat Transferred 720 | . . 720 . Parts Sabotaged . | . . . . Parts Stolen . | . . . . Parts Stripped . | . . . . Power Chain Reactions . | . . . . Alert | -11 -10 -10 -9 ------- Run | Yrd Mat Min Mat Maximum Alert Level 1 | . . . 1 Low Security (%) 95 | 100 100 100 94 Level 1 4 | . . . 5 Level 2 . | . . . . Level 3 . | . . . . Level 4 . | . . . . Level 5 . | . . . . High Security . | . . . . Max Security . | . . . . Peak Influence 330 | . . 61 330 Initial 11 | . . . 11 Average 24 | . . 35 24 Influence Increases 519 | . . 101 418 Destroy 0b10 Robot/C 200 | . . 20 180 Destroy Leader 40 | . . 10 30 Trap Triggered on 0b10 30 | . . 10 20 Disable Machine 15 | . . . 15 Destroy Structure 39 | . . 16 23 Lose Combat Pursuer 195 | . . 45 150 Influence Decreases 189 | . . 70 119 Entered New Map 20 | . . . 20 Time Decay 127 | . . 70 57 Lost Part 42 | . . . 42 Squads Dispatched 1 | . . . 1 Investigation . | . . . . Extermination . | . . . . Reinforcement 1 | . . . 1 Assault . | . . . . Garrison . | . . . . Intercept . | . . . . Searches Triggered . | . . . . Construction Impeded . | . . . . Haulers Reinforced . | . . . . Active Scanning Responses . | . . . . Cargo Convoy Interrupts . | . . . . Stealth | -11 -10 -10 -9 --------- Run | Yrd Mat Min Mat Distress Signals 1 | . . . 1 Communications Jammed . | . . . . Distress Signals . | . . . . Times Spotted 32 | . 4 5 23 Peak Tracking Total 11 | . 4 2 11 Tactical Retreats 6 | . . 2 4 Traps | -11 -10 -10 -9 ------- Run | Yrd Mat Min Mat Traps Triggered 3 | . . 1 2 Indirectly . | . . . . Trap Hack Attempts . | . . . . Triggered . | . . . . Disarmed . | . . . . Reprogrammed . | . . . . Reused 3 | . . 1 2 Traps Extracted . | . . . . Installed 5 | . . 1 4 Triggered 3 | . . 1 2 Most Traps Carried 5 | . . 5 4 Machines | -11 -10 -10 -9 ---------- Run | Yrd Mat Min Mat Machines Disabled 1 | . . . 1 Max in Single Turn 1 | . . . 1 Machines Repaired . | . . . . Machines Dismantled . | . . . . Machines Sabotaged . | . . . . Overloaded Fab Kills . | . . . . Hacking | -11 -10 -10 -9 --------- Run | Yrd Mat Min Mat Machines Accessed . | . . . . Terminals . | . . . . Fabricators . | . . . . Repair Stations . | . . . . Recycling Units . | . . . . Scanalyzers . | . . . . Garrison Access . | . . . . Total Hacks . | . . . . Successful . | . . . . Failed . | . . . . Catastrophic . | . . . . Database Lockouts . | . . . . Manual . | . . . . Terminals . | . . . . Fabricators . | . . . . Repair Stations . | . . . . Recycling Units . | . . . . Scanalyzers . | . . . . Garrison Access . | . . . . Terminal Hacks . | . . . . Fabricator Hacks . | . . . . Repair Station Hacks . | . . . . Recycling Unit Hacks . | . . . . Scanalyzer . | . . . . Garrison Access Hacks . | . . . . Unauthorized Hacks . | . . . . Terminals . | . . . . Fabricators . | . . . . Repair Stations . | . . . . Recycling Units . | . . . . Scanalyzers . | . . . . Garrison Access . | . . . . Data Cores Recovered . | . . . . Used . | . . . . Hacking Detections . | . . . . Full Trace Events . | . . . . Feedback Events . | . . . . Feedback Blocked . | . . . . Robot Schematics Acquired . | . . . . Robots Built . | . . . . Authchips . | . . . . Time . | . . . . Total Robot Build Rating . | . . . . Part Schematics Acquired . | . . . . Parts Built . | . . . . Authchips . | . . . . Time . | . . . . Total Part Build Rating . | . . . . Parts Repaired . | . . . . Time . | . . . . Parts Recycled . | . . . . Recycled Matter . | . . . . Retrieved Matter . | . . . . Retrieved Components . | . . . . Parts Scanalyzed . | . . . . Part Schematics Acquired . | . . . . Parts Damaged . | . . . . Bothacking | -11 -10 -10 -9 ------------ Run | Yrd Mat Min Mat Used RIF Installer . | . . . . Robots Hacked . | . . . . Non-combat . | . . . . Combat . | . . . . Robot Hacks Applied . | . . . . Relay Couplers Released . | . . . . Fabnet Peak Effective % . | . . . . Robots Rewired . | . . . . Allies Hacked . | . . . . Hacks Repelled . | . . . . Allies | -11 -10 -10 -9 -------- Run | Yrd Mat Min Mat Total Allies . | . . . . Largest Group . | . . . . Highest-Rated Group . | . . . . Highest-Rated Ally . | . . . . Total Orders . | . . . . Ally Attacks . | . . . . Total Damage . | . . . . Kills . | . . . . Allies Corrupted . | . . . . Allies Melted . | . . . . Intel | -11 -10 -10 -9 ------- Run | Yrd Mat Min Mat Active Infowar (turns) . | . . . . Robot Analysis Total . | . . . . Derelict Logs Recovered 1 | . . 1 . Drone Launches . | . . . . Drone Recoveries . | . . . . Exploration | -11 -10 -10 -9 ------------- Run | Yrd Mat Min Mat Turns Passed 1080 | 64 31 175 810 Spaces Moved 555 | 60 42 261 192 Core 381 | 5 21 261 94 Treads 5 | . . . 5 Legs . | . . . . Wheels 76 | 55 21 . . Hover . | . . . . Flight 93 | . . . 93 Fastest Speed 34 | 50 50 50 34 Average Speed 157 | 85 70 50 344 Slowest Speed 1500 | 90 90 50 1500 Overloaded Moves . | . . . . Propulsion Burnouts . | . . . . Robots Hopped . | . . . . Potential Cave-ins . | . . . . Cave-ins Triggered 1 | . . . 1 Exploration Rate (%) 21 | 3 12 48 24 Regions Visited 3 Branch Regions 1 Pre-discovered Areas . | . . . . Known Exits Taken . | . . . . Unknown Exits Taken 3 | 1 1 1 . Scrap Searched 1 | . . 1 . Spaces Dug . | . . . . Terrain Destroyed 40 | . . 18 22 Melee . | . . . . Projectile . | . . . . AOE 40 | . . 18 22 Terrain Rammed . | . . . . Walls Destroyed . | . . . . Machines Disabled . | . . . . Actions | -11 -10 -10 -9 --------- Run | Yrd Mat Min Mat Total 701 | 70 43 297 291 Wait 70 | . . 24 46 Move 552 | 59 41 260 192 Hop . | . . . . Pick Up 6 | . . 5 1 Fast Attach 18 | 7 . 1 10 Attach . | . . . . Detach 3 | 2 . . 1 Swap . | . . . . Drop 10 | 2 . 1 7 Fire 34 | . . 5 29 Melee . | . . . . Ram 3 | . 2 . 1 Kick . | . . . . Crush . | . . . . Escape Stasis . | . . . . Rewire . | . . . . Trap 5 | . . 1 4 Miscellaneous . | . . . . Route ------- -11/Scrapyard -10/Materials -10/Mines -9/Materials History --------- Turn | Location | Event 26 | -11/Scrapyard | Discovered new exit (range 16) 65 | -11/Scrapyard | Entered Materials 84 | -10/Materials | Released all parts (5) 91 | -10/Materials | Discovered new exit (range 10) 96 | -10/Materials | Entered Mines 121 | -10/Mines | Learned Materials stockpile data 125 | -10/Mines | Core integrity fell below 50% 149 | -10/Mines | A weapon hastily lodged in a ceiling crevice suddenly fell to the ground 158 | -10/Mines | Core integrity fell below 20% 196 | -10/Mines | Found a hidden stash of uninstalled traps 264 | -10/Mines | Discovered new exit (range 14) 271 | -10/Mines | Received a Rocket Launcher from a helpful Derelict 271 | -10/Mines | Entered Materials 271 | -9/Materials | Evolved 2 slots: Utility x2 316 | -9/Materials | Build established: Mutant 989 | -9/Materials | Crushed by falling debris 1011 | -9/Materials | Core integrity fell below 50% 1035 | -9/Materials | Core integrity fell below 20% 1044 | -9/Materials | Lost 4 parts (2n2w) 1081 | -9/Materials | Destroyed by G-47 Trooper with Particle Gun Last Messages --------------- 01009_ Destroyed Aluminum Leg. 01013_ Lgt. Assault Rifle destroyed. 01017_ #%K7BM1Y6N<>7PBR3C 01017_ T-07 Excavator is excavating. 01021_ Acquired Autogun. 01027_ Y-45 Defender destroyed. 01030_ G-34 Mercenary destroyed. 01035_ Switching to secondary target: Y-45 Defender. 01037_ G-47 Trooper destroyed. 01037_ Switching to secondary target: Y-45 Defender. 01039_ System corrupted: Matter fused (-5). 01048_ G-34 Mercenary destroyed. 01053_ Switching to secondary target: Y-45 Defender. 01058_ Autogun destroyed. 01059_ System corrupted: Autogun rejected. 01060_ Acquired Autogun. 01064_ Y-45 Defender destroyed. 01067_ Acquired Lgt. Treads. 01073_ Acquired 53 matter. 01075_ System corrupted: Heat flow error (+242). Map ----- +----------------------------------------------------+ | #?# ###### """ #????? | | #?# #????########????? | | " #?# ????????????????? | | " ####### ?????????????????? | | " # #????????????????????? | | " # #????????????????????? | | " #????????????????????? | | " #????????????????????? | | " # #####????????????????? | | *%[ # ????????????????? | | # ????????????????? | | ##### ## ????????????????? | | ????######## #????????????????? | | ???????????# #????????????????? | | ##?????????# #????????????????? | | #?????????+ ????????????????? | | #?????????# #????????????????? | | #?????????# #????????????????? | | #?????????# #??###???????????? | | #?????????# #### ###?????????? | | #?????????# !#=!%! #?????????? | | #??######## =#**[ #?????????? | | #### # ## !+%[ #?????????? | | ## #! /#?????????? | | ## #! ##### #???? | | + #[ [ + [@g #???? | | ## ###########+##### #???? | | ?## #?????????# #?????????? | | ??#! ! #?????????# #?????????? | | ??##!!!! ##?????????###?????????? | | ???#######??????????????????????? | | ??????????????????????!?????????? | | ????????????????????????????????? | | ????????????????????????????????? | | ????????????????????????????????? | | ????????????????????????????????? | | ????????????????????????????????? | | ????????????????????????????????? | | ????????????????????????????????? | | ????????????????????????????????? | | ????????????????????????????????? | | ????????????????????????????????? | | ????????????????????????????????? | | ????????????????????????????????? | | ????????????????????????????????? | | ????????????????????????????????? | | ????????????????????????????????? | | ????????????????????????????????? | | ????????????????????????????????? | | ????????????????????????????????? | +----------------------------------------------------+ Best States ------------- Heat Dissipation 28 Energy Generation 10 Energy Capacity 250 Matter Stores 297 Matter Capacity 300 Sight Range 16 Terrain Scan Density 10 Evasion (%) 63 Recoil Reduction 2 Item Schematics ----------------- None Robot Schematics ------------------ None Fabricated ------------ Nothing Repaired ---------- Nothing Alien Tech Used ----------------- None Achievements -------------- None Challenges ------------ None Game ------ Seed DispersionDerelictMultirail Manual? 0 Play Time 00:06:27 Cumulative 27.7 hours Start 2025.10.11 @ 20:08:11 End 2025.10.11 @ 20:12:43 Sessions 1 Manual Loads 0 Difficulty Rogue Special Mode None Game No. 110 Rogue 110 Adventurer 0 Explorer 0 Win Type - Total 0 Types 0/0/0/0/0/0/0/0/0/0 Lore% 11 Gallery% 29 Achievement% 27 Wizard Run 0 Options --------- Layout 1 ASCII 0 Keyboard 1 Movement Vi Keybinds 0 Fullscreen 1 Font 16/SmallcapsGlow Map View 55x38 Zoom Use 0% Tactical HUD 1 Map Filters NONE Filters NONE Steam 1 RUN: 29ddead5-3623-41f2-919b-6c740ddee6dd